bitfinex-derivatives/quotes_SOLF0:USTF0_20250221
["timestamp","ask_amount","ask_price","bid_price","bid_amount"]
[1740162093110,5.8155,171.94,171.86,5.8179]
[1740162093312,1.02591124,171.93,171.83,26.2616944]
[1740162093610,1.02591124,171.93,171.8,26.2616944]
[1740162093805,0.04245339,171.9,171.86,0.04277666]
[1740162094005,5.85935339,171.9,171.86,0.04277666]
[1740162094206,0.04245339,171.9,171.86,0.04277666]
[1740162094611,1.06846792,171.9,171.86,0.04277666]
[1740162094812,1.02601453,171.89,171.86,0.04277666]
[1740162095108,5.8186,171.84,171.76,5.8212]
[1740162095409,3.4357,171.88,171.75,1.7479]
[1740162095611,1.02566561,171.87,171.75,1.7479]
[1740162096114,0.04304166,171.83,171.79,0.04035869]
[1740162098211,5.86204166,171.83,171.79,0.04035869]
[1740162098710,5.8193,171.82,171.79,0.04035869]
[1740162098903,0.04304166,171.83,171.79,0.04035869]
[1740162100013,5.8197,171.81,171.79,0.04035869]
[1740162100517,0.04304166,171.83,171.79,0.04035869]
[1740162102213,0.04304166,171.83,171.79,26.30205309]
[1740162102514,7.5708,171.89,171.83,5.8188]
[1740162102709,1.7538,171.89,171.79,26.2616944]
[1740162102910,5.8165,171.91,171.85,5.818]
[1740162103110,1.02623269,171.9,171.82,26.2616944]
[1740162103312,1.8701,171.94,171.85,26.2616944]
[1740162103513,7.6739,171.95,171.9,5.8166]
[1740162103712,0.03723731,171.91,171.88,0.04332532]
[1740162103921,5.8169,171.89,171.83,5.8187]
[1740162104208,1.859,171.94,171.88,0.04193034]
[1740162104416,0.04141087,171.88,171.81,26.2616944]
[1740162104606,5.8166,171.91,171.84,5.8183]
[1740162104809,0.04053769,171.86,171.83,0.03817087]
[1740162105215,0.03848522,171.86,171.85,5.8183]
[1740162105513,1.8701,171.98,171.84,26.2616944]
[1740162105809,1.02686034,171.97,171.88,26.2616944]
[1740162106417,1.02686034,171.97,171.9,5.8165]
[1740162106619,1.02686034,171.97,171.91,0.04216388]
[1740162106620,0.04057037,171.94,171.91,0.04216388]
[1740162106811,5.8159,171.92,171.91,0.04216388]
[1740162107320,5.85587037,171.94,171.91,0.04216388]
[1740162107618,1.02793153,171.93,171.91,0.04216388]
[1740162107916,0.04057037,171.94,171.83,5.8189]
[1740162108115,0.04057037,171.94,171.82,1.8267]
[1740162108116,1.02778819,171.97,171.81,26.2616944]
[1740162108319,26.2616944,171.95,171.78,26.2616944]
[1740162108515,5.8176,171.87,171.8,5.8197]
[1740162108715,1.8243,171.94,171.78,26.2616944]
[1740162109124,0.03813036,171.88,171.84,0.0409646]
[1740162109424,1.06634663,171.88,171.84,0.0409646]
[1740162109618,6.88394663,171.88,171.84,0.0409646]
[1740162109818,1.02821627,171.87,171.84,0.0409646]
[1740162110016,0.03813036,171.88,171.84,0.0409646]
[1740162110823,5.8177,171.87,171.84,0.0409646]
[1740162111019,0.03813036,171.88,171.84,0.0409646]
[1740162111426,5.8183,171.85,171.84,0.0409646]
[1740162111615,6.84573176,171.85,171.84,0.0409646]
[1740162112014,5.8183,171.85,171.84,0.0409646]
[1740162112217,6.84522549,171.85,171.84,0.0409646]
[1740162112616,5.8183,171.85,171.84,0.0409646]
[1740162112817,5.85543036,171.88,171.84,0.0409646]
[1740162113019,1.02776163,171.87,171.84,0.0409646]
[1740162113227,0.03813036,171.88,171.84,0.0409646]
[1740162113423,5.8176,171.87,171.84,0.0409646]
[1740162113726,0.03813036,171.88,171.84,0.0409646]
[1740162113921,5.8183,171.85,171.84,0.0409646]
[1740162114522,6.84616365,171.85,171.84,0.0409646]
[1740162115224,5.8196,171.82,171.76,5.8211]
[1740162115424,1.7141,171.91,171.76,5.8211]
[1740162115622,1.02798813,171.9,171.76,5.8211]
[1740162115825,5.8196,171.82,171.76,5.8211]
[1740162116224,0.04121039,171.81,171.77,0.04155724]
[1740162118034,5.8207,171.78,171.77,0.04155724]
[1740162118222,1.02870675,171.78,171.68,248.92260538]
[1740162118427,0.04121039,171.81,171.68,56.92260538]
[1740162118623,5.8217,171.75,171.7,5.8233]
[1740162118826,26.2616944,171.83,171.68,56.92260538]
[1740162119023,1.02836577,171.82,171.68,56.92260538]
[1740162119228,1.02836577,171.82,171.69,26.2616944]
[1740162119429,0.04200838,171.77,171.73,0.03962659]
[1740162121132,5.86310838,171.77,171.73,0.03962659]
[1740162121633,0.04200838,171.77,171.73,0.03962659]
[1740162124330,5.822,171.74,171.73,0.03962659]
[1740162124932,6.84800928,171.74,171.73,0.03962659]
[1740162125434,5.823,171.71,171.65,5.8247]
[1740162125830,3.5925,171.77,171.65,5.8247]
[1740162126037,1.02603483,171.76,171.65,5.8247]
[1740162126236,5.8233,171.71,171.65,5.8247]
[1740162126433,3.5925,171.77,171.63,26.2616944]
[1740162126633,0.04437098,171.7,171.66,0.03758332]
[1740162126833,0.04437098,171.7,171.58,5.8274]
[1740162126834,26.2616944,171.69,171.58,5.8274]
[1740162127028,2.8603574,171.68,171.56,0.2653]
[1740162127236,1.8345,171.68,171.56,0.2653]
[1740162127436,1.02493896,171.67,171.56,5.8279]
[1740162127837,5.826,171.63,171.56,5.8279]
[1740162128232,0.04158747,171.63,171.6,0.04231241]
[1740162128536,5.86758747,171.63,171.6,0.04231241]
[1740162128838,0.04158747,171.63,171.6,0.04231241]
[1740162130537,0.04158747,171.63,171.62,5.8261]
[1740162130843,26.2616944,171.75,171.6,26.30400681]
[1740162131037,1.02591749,171.7,171.6,26.30400681]
[1740162131238,1.7249,171.76,171.63,26.2616944]
[1740162131442,1.02618084,171.75,171.66,26.2616944]
[1740162131939,0.04303412,171.72,171.69,0.04334299]
[1740162132341,0.04303412,171.72,171.71,5.823]
[1740162132540,0.04303412,171.72,171.69,0.04334299]
[1740162133944,0.04303412,171.72,171.71,5.823]
[1740162134339,1.02627845,171.79,171.69,26.30503739]
[1740162134539,1.02627845,171.79,171.7,1.7456]
[1740162134736,1.02627845,171.82,171.72,26.2616944]
[1740162134938,1.701,171.83,171.72,26.2616944]
[1740162135140,6.84627882,171.81,171.76,5.8213]
[1740162135335,1.701,171.83,171.72,26.2616944]
[1740162135540,0.04353477,171.79,171.76,0.04344468]
[1740162135742,0.04353477,171.79,171.76,5.86474468]
[1740162136148,0.04353477,171.79,171.76,0.04344468]
[1740162137242,0.04353477,171.79,171.77,5.821]
[1740162137539,26.2616944,171.93,171.78,26.2616944]
[1740162137745,1.02638689,171.87,171.81,5.8195]
[1740162137945,14.3001,171.95,171.81,26.2616944]
[1740162138347,1.02662404,171.94,171.81,26.2616944]
[1740162138644,5.8178,171.87,171.81,32.0812944]
[1740162138846,0.03912042,171.89,171.86,0.04436606]
[1740162139048,0.03912042,171.89,171.83,5.8188]
[1740162139345,0.03912042,171.89,171.86,0.04124004]
[1740162139552,5.8179,171.87,171.86,0.04124004]
[1740162139745,5.8179,171.87,171.8,5.8197]
[1740162139943,5.8179,171.87,171.85,0.04352072]
[1740162140149,5.8179,171.86,171.85,0.04352072]
[1740162140343,1.02651192,171.86,171.85,0.04352072]
[1740162140537,0.03766908,171.88,171.85,0.04352072]
[1740162140742,5.85496908,171.88,171.85,0.04352072]
[1740162140943,1.02665799,171.87,171.85,0.04352072]
[1740162141246,6.84425799,171.87,171.85,0.04352072]
[1740162141444,0.03766908,171.88,171.85,0.04352072]
[1740162143550,5.8179,171.86,171.85,0.04352072]
[1740162143744,6.84566148,171.86,171.85,0.04352072]
[1740162144146,1.02776148,171.86,171.73,0.2615]
[1740162144446,2.72766148,171.85,171.73,0.2615]
[1740162144650,1.02776148,171.84,171.73,0.2615]
[1740162145042,0.76856148,171.84,171.81,26.2616944]
[1740162145248,10.08165775,171.92,171.81,26.2616944]
[1740162145447,10.08165775,171.92,171.84,26.2616944]
[1740162145655,0.03671854,171.88,171.87,26.2616944]
[1740162145952,26.2616944,172.02,171.87,26.2616944]
[1740162146153,1.02018039,171.99,171.87,26.2616944]
[1740162147253,5.85485646,171.95,171.91,0.03819181]
[1740162147847,5.8159,171.92,171.91,0.03819181]
[1740162148353,0.03975646,171.95,171.91,0.03819181]
[1740162150454,0.03975646,171.95,171.92,5.8157]
[1740162150655,0.03975646,171.95,171.91,0.03819181]
[1740162151556,0.03975646,171.95,171.92,5.8156]
[1740162152348,0.03975646,171.95,171.91,0.03819181]
[1740162152952,0.03975646,171.95,171.93,5.8153]
[1740162153557,0.03975646,171.95,171.92,5.8158]
[1740162153855,0.03975646,171.95,171.91,0.03819181]
[1740162154054,0.03975646,171.95,171.93,5.8154]
[1740162154651,0.03975646,171.95,171.92,5.8158]
[1740162155053,0.03975646,171.95,171.91,0.03819181]
[1740162155354,0.64976035,172.07,171.93,26.2616944]
[1740162155552,1.0212367,172.06,171.94,1.8495]
[1740162155748,0.64976035,172.07,171.98,5.8136]
[1740162156054,5.8128,172.02,171.98,5.8136]
[1740162156655,5.85242626,172.02,171.98,5.85350133]
[1740162157154,0.03962626,172.02,171.98,0.03990133]
[1740162157354,5.8133,172.0,171.98,0.03990133]
[1740162157558,0.03962626,172.02,171.98,0.03990133]
[1740162159060,0.03962626,172.02,172.01,5.8129]
[1740162159260,0.03962626,172.02,171.98,0.03990133]
[1740162159755,0.03962626,172.02,172.01,5.8129]
[1740162160554,0.03962626,172.02,172.0,5.8131]
[1740162160751,0.03962626,172.02,171.98,0.03990133]
[1740162160960,0.03962626,172.02,171.99,26.2616944]
[1740162161257,5.8107,172.08,171.99,26.2616944]
[1740162161457,1.7015,172.1,171.96,26.2616944]
[1740162161657,1.02118035,172.09,172.0,5.813]
[1740162161857,5.812,172.04,172.0,5.813]
[1740162162057,1.7015,172.1,172.02,5.8125]
[1740162162357,0.0431853,172.04,172.02,5.8125]
[1740162162560,1.02114466,172.09,172.02,5.8125]
[1740162162753,0.03766491,172.05,172.02,5.8125]
[1740162162959,0.03766491,172.05,172.03,5.8119]
[1740162163258,0.03766491,172.05,172.01,0.04226014]
[1740162163461,0.03766491,172.05,172.02,5.8123]
[1740162163855,0.03766491,172.05,172.01,0.04226014]
[1740162164055,0.03766491,172.05,172.02,5.8125]
[1740162164258,5.8122,172.03,172.01,0.04226014]
[1740162164456,0.03766491,172.05,172.01,0.04226014]
[1740162164857,5.8125,172.02,172.01,0.04226014]
[1740162166058,0.03766491,172.05,172.01,0.04226014]
[1740162166659,5.8124,172.03,172.01,0.04226014]
[1740162167153,0.03766491,172.05,172.01,0.04226014]
[1740162167752,5.84946491,172.05,172.01,0.04226014]
[1740162168161,0.03766491,172.05,172.01,0.04226014]
[1740162169663,5.8119,172.04,172.01,0.04226014]
[1740162170362,5.84926491,172.05,172.01,0.04226014]
[1740162170763,0.03766491,172.05,172.01,0.04226014]
[1740162171863,5.8119,172.04,172.01,0.04226014]
[1740162173265,0.03766491,172.05,172.01,0.04226014]
[1740162173867,5.84916491,172.05,172.01,5.85506014]
[1740162174067,5.84916491,172.05,172.01,0.04226014]
[1740162174462,5.84916491,172.05,172.01,5.85506014]
[1740162174867,0.03766491,172.05,172.01,0.04226014]
[1740162176267,5.8119,172.04,172.01,0.04226014]
[1740162176767,5.84916491,172.05,172.01,0.04226014]
[1740162177170,0.03766491,172.05,172.01,0.04226014]
[1740162177766,5.84916491,172.05,172.01,5.85506014]
[1740162177967,5.84916491,172.05,172.01,0.04226014]
[1740162178171,0.03766491,172.05,172.01,0.04226014]
[1740162178763,5.84916491,172.05,172.01,5.85506014]
[1740162180269,5.8119,172.04,172.01,0.04226014]
[1740162180475,0.03766491,172.05,172.01,0.04226014]
[1740162183478,1.8075,172.14,172.03,16.43197966]
[1740162183669,1.8075,172.14,172.01,0.04226014]
[1740162183670,1.02099793,172.13,172.1,5.8096]
[1740162183869,1.02099793,172.13,172.07,16.43197966]
[1740162184180,3.6279,172.19,172.07,16.43197966]
[1740162184379,1.02097341,172.18,172.07,16.43197966]
[1740162184774,5.8092,172.12,172.11,0.04114885]
[1740162184974,6.83018975,172.12,172.11,0.04114885]
[1740162185167,6.83018975,172.12,172.01,200.88]
[1740162185168,1.02098975,172.12,172.01,217.31197966]
[1740162185372,16.43197966,172.14,172.02,5.8124]
[1740162185373,19.15296941,172.11,172.02,5.8124]
[1740162185574,1.02103492,172.1,172.02,5.8124]
[1740162186173,5.8114,172.06,172.0,5.8129]
[1740162186475,16.47092387,172.08,172.04,0.03897515]
[1740162186779,1.7,172.11,171.97,26.28739648]
[1740162186974,0.03907722,172.08,172.04,0.04349252]
[1740162187370,5.8115,172.05,172.04,0.04349252]
[1740162187580,26.3264737,172.08,171.98,5.8138]
[1740162187780,1.02128038,172.07,171.96,57.68451177]
[1740162187982,27.98739648,172.11,171.96,57.68451177]
[1740162188274,1.02115816,172.1,171.96,57.68451177]
[1740162188679,0.0381559,172.05,172.01,0.04076234]
[1740162190376,27.98739648,172.11,172.01,0.04076234]
[1740162190377,1.7,172.11,172.01,0.04076234]
[1740162190876,1.0210305,172.1,172.01,0.04076234]
[1740162191072,5.811,172.07,172.03,5.8119]
[1740162191278,1.7,172.11,171.98,0.0785]
[1740162191481,1.0210423,172.1,171.98,0.0785]
[1740162191677,0.04294271,172.06,172.03,0.03836901]
[1740162192382,0.04294271,172.06,172.04,5.8116]
[1740162192984,0.04294271,172.06,172.05,5.8115]
[1740162193878,1.7935,172.13,172.03,26.32576549]
[1740162194079,1.02100562,172.12,172.1,5.8098]
[1740162194277,1.8357,172.14,172.03,26.28739648]
[1740162194478,1.02099742,172.13,171.99,218.28739648]
[1740162195178,0.04255797,172.08,172.04,0.03776514]
[1740162196279,0.04255797,172.08,172.07,5.8108]
[1740162197886,0.04255797,172.08,172.06,5.8111]
[1740162198084,0.04255797,172.08,172.04,0.03776514]
[1740162198592,0.04255797,172.08,172.07,5.8108]
[1740162202587,0.04255797,172.08,172.05,5.8114]
[1740162202788,0.04255797,172.08,172.04,0.03776514]
[1740162203289,1.06367057,172.08,172.04,0.03776514]
[1740162203492,0.04255797,172.08,172.04,0.03776514]
[1740162204392,0.04255797,172.08,172.06,5.8109]
[1740162204589,0.04255797,172.08,172.04,0.03776514]
[1740162204994,0.04255797,172.08,172.07,5.8108]
[1740162207895,0.04255797,172.08,172.04,16.45836536]
[1740162211690,0.04255797,172.08,172.04,0.03776514]
[1740162212604,5.8115,172.05,172.04,0.03776514]
[1740162212797,0.04255797,172.08,172.04,0.03776514]
[1740162213399,1.06367274,172.08,172.04,0.03776514]
[1740162214308,0.04255797,172.08,172.04,0.03776514]
[1740162216102,5.8111,172.07,172.04,0.03776514]
[1740162216399,0.04255797,172.08,172.04,0.03776514]
[1740162217004,1.06373165,172.08,172.04,0.03776514]
[1740162217307,0.04255797,172.08,172.04,0.03776514]
[1740162217495,5.85335797,172.08,172.04,0.03776514]
[1740162218103,0.04255797,172.08,172.04,0.03776514]
[1740162218304,1.06369775,172.08,172.04,0.03776514]
[1740162218705,0.04255797,172.08,172.04,0.03776514]
[1740162220102,5.85335797,172.08,172.04,0.03776514]
[1740162220301,0.04255797,172.08,172.04,0.03776514]
[1740162220603,5.85335797,172.08,172.04,0.03776514]
[1740162221002,0.04255797,172.08,172.04,0.03776514]
[1740162221201,5.85305797,172.08,172.04,0.03776514]
[1740162222401,0.04255797,172.08,172.04,0.03776514]
[1740162223003,5.811,172.07,172.04,0.03776514]
[1740162223204,0.04255797,172.08,172.04,0.03776514]
[1740162224208,5.85325797,172.08,172.04,0.03776514]
[1740162224403,0.04255797,172.08,172.04,0.03776514]
[1740162224609,0.04255797,172.08,171.96,16.42060022]
[1740162224803,5.8121,172.04,171.96,16.42060022]
[1740162225808,0.0402106,172.02,171.98,0.04412692]
[1740162227903,0.0402106,172.02,171.99,16.42060022]
[1740162228409,1.7804,172.1,171.99,16.42060022]
[1740162228609,7.5904,172.1,172.02,16.42060022]
[1740162228810,1.7804,172.1,172.02,16.42060022]
[1740162229501,0.04193696,172.08,172.04,0.04346652]
[1740162238315,0.04193696,172.08,172.05,16.42060022]
[1740162241014,0.04193696,172.08,172.04,0.04346652]
[1740162241414,5.8112,172.06,172.04,0.04346652]
[1740162242315,5.8109,172.07,172.04,0.04346652]
[1740162242625,0.04193696,172.08,172.04,0.04346652]
[1740162242818,1.06310701,172.08,172.05,5.8112]
[1740162243118,0.04193696,172.08,172.05,5.8112]
[1740162243320,1.06300743,172.08,172.04,0.04346652]
[1740162243519,0.04193696,172.08,172.05,16.42060022]
[1740162243913,0.04193696,172.08,172.07,5.8108]
[1740162244521,0.04193696,172.08,172.04,0.04346652]
[1740162245310,5.85273696,172.08,172.04,0.04346652]
[1740162245916,0.04193696,172.08,172.04,0.04346652]
[1740162246725,0.04193696,172.08,172.05,16.42060022]
[1740162247115,0.04193696,172.08,172.04,0.04346652]
[1740162249318,0.04193696,172.08,171.96,16.42060022]
[1740162249517,16.42060022,172.08,171.96,16.42060022]
[1740162249716,4.5130502,172.07,171.95,57.49020416]
[1740162249920,1.0212502,172.06,171.95,57.49020416]
[1740162250421,0.04282198,172.02,171.99,0.0423677]
[1740162251117,0.04282198,172.02,171.95,57.49020416]
[1740162251315,0.04282198,172.02,171.91,17.23827543]
[1740162251520,1.0212502,172.04,171.91,17.23827543]
[1740162252027,1.0212502,172.04,171.94,16.42060022]
[1740162252028,5.8134,172.0,171.94,16.42060022]
[1740162252228,0.03959112,171.99,171.96,0.04456675]
[1740162252526,1.7166,171.99,171.91,17.23827543]
[1740162252718,1.7714,171.98,171.91,0.81767521]
[1740162253626,5.85513605,171.96,171.93,0.0421533]
[1740162253827,0.04023605,171.96,171.93,0.0421533]
[1740162254122,5.8152,171.95,171.93,0.0421533]
[1740162254528,0.04023605,171.96,171.93,0.0421533]
[1740162255219,5.8152,171.94,171.93,0.0421533]
[1740162255927,0.04023605,171.96,171.84,3.0811]
[1740162255928,0.04023605,171.96,171.85,16.42060022]
[1740162256124,16.42060022,171.96,171.82,16.42060022]
[1740162256325,5.8179,171.87,171.82,16.42060022]
[1740162256519,16.42060022,171.96,171.82,16.42060022]
[1740162256728,1.02199276,171.95,171.82,16.42060022]
[1740162256924,5.8176,171.88,171.87,0.04063015]
[1740162257622,5.8184,171.85,171.82,16.42060022]
[1740162258125,3.5363,171.9,171.82,16.42060022]
[1740162258722,5.8193,171.83,171.79,16.42060022]
[1740162258927,3.5363,171.9,171.84,0.03872248]
[1740162259126,1.02234817,171.89,171.79,22.24080022]
[1740162259324,0.03669942,171.83,171.79,16.42060022]
[1740162259530,0.03669942,171.83,171.82,0.04284121]
[1740162260329,5.85569942,171.83,171.82,0.04284121]
[1740162260533,0.03669942,171.83,171.76,17.1994574]
[1740162261028,5.8205,171.79,171.76,17.1994574]
[1740162261430,1.7553,171.82,171.76,17.1994574]
[1740162261626,0.03843094,171.79,171.76,17.2426683]
[1740162262130,5.821,171.77,171.76,0.0432109]
[1740162262632,0.03843094,171.79,171.73,16.42060022]
[1740162262832,0.03843094,171.79,171.64,1.7851]
[1740162262833,0.03843094,171.79,171.7,16.42060022]
[1740162263234,5.8222,171.74,171.7,16.42060022]
[1740162263737,5.8227,171.73,171.7,16.45575823]
[1740162264237,0.03721638,171.74,171.7,16.45575823]
[1740162265730,5.85931638,171.74,171.7,16.45575823]
[1740162266131,0.03721638,171.74,171.7,16.45575823]
[1740162266635,0.03721638,171.74,171.61,152.24]
[1740162266935,16.42060022,171.78,171.66,16.42060022]
[1740162267136,5.8231,171.71,171.66,16.42060022]
[1740162267624,5.8231,171.71,171.61,152.24]
[1740162267625,16.42060022,171.78,171.63,16.42060022]
[1740162267829,0.04369975,171.7,171.63,16.42060022]
[1740162268227,0.04369975,171.7,171.63,22.24630022]
[1740162268428,0.04369975,171.7,171.63,16.42060022]
[1740162268628,5.8251,171.65,171.6,22.24730022]
[1740162268835,1.7074,171.69,171.6,22.24730022]
[1740162269034,0.04444969,171.64,171.6,16.42060022]
[1740162269226,5.86984969,171.64,171.57,16.42060022]
[1740162269431,0.04444969,171.64,171.57,16.42060022]
[1740162269838,5.86994969,171.64,171.57,16.42060022]
[1740162270335,5.86994969,171.64,171.59,5.8268]
[1740162270829,0.04444969,171.64,171.59,5.8271]
[1740162271440,5.86984969,171.64,171.6,5.8268]
[1740162271631,0.04444969,171.64,171.6,5.8268]
[1740162272232,0.04444969,171.64,171.57,16.42060022]
[1740162273139,0.04444969,171.64,171.6,5.8265]
[1740162273339,0.04444969,171.64,171.57,16.42060022]
[1740162274035,0.04444969,171.64,171.62,5.8261]
[1740162274240,0.04444969,171.64,171.57,16.42060022]
[1740162274642,0.04444969,171.64,171.59,5.8268]
[1740162274840,0.04444969,171.64,171.57,16.42060022]
[1740162275241,0.04444969,171.64,171.6,5.8265]
[1740162276445,5.86994969,171.64,171.6,5.8265]
[1740162276947,0.04444969,171.64,171.6,5.8265]
[1740162277251,0.04444969,171.64,171.57,16.42060022]
[1740162278152,0.04444969,171.64,171.62,5.8258]
[1740162278449,0.04444969,171.64,171.6,16.42060022]
[1740162278845,0.04444969,171.64,171.62,5.8258]
[1740162279050,0.04444969,171.64,171.6,16.42060022]
[1740162279554,0.04444969,171.64,171.63,5.8257]
[1740162279751,17.5,171.84,171.63,16.42060022]
[1740162280053,5.8244,171.68,171.63,16.42060022]
[1740162280353,5.8244,171.68,171.6,16.42060022]
[1740162280758,5.8237,171.7,171.6,16.42060022]
[1740162280956,0.04048506,171.66,171.62,0.03736317]
[1740162281145,1.02343024,171.73,171.6,16.42060022]
[1740162281351,5.824,171.69,171.63,5.8257]
[1740162281548,0.04134326,171.65,171.63,5.8257]
[1740162281947,0.04134326,171.65,171.62,0.04056924]
[1740162282153,0.04134326,171.65,171.64,5.8254]
[1740162288359,3.6509,171.74,171.63,16.42060022]
[1740162288562,3.6509,171.74,171.66,16.42060022]
[1740162288862,1.02332057,171.73,171.65,5.8248]
[1740162289060,1.02332057,171.73,171.63,16.42060022]
[1740162289249,1.02332057,171.73,171.66,5.8247]
[1740162289455,0.04220007,171.7,171.66,5.86940956]
[1740162289659,0.04220007,171.7,171.66,0.04470956]
[1740162291561,5.824,171.69,171.66,0.04470956]
[1740162292063,0.04220007,171.7,171.66,0.04470956]
[1740162292860,5.86560007,171.7,171.66,5.86920956]
[1740162293061,0.04220007,171.7,171.66,0.04470956]
[1740162293459,0.04220007,171.7,171.67,5.8242]
[1740162294062,0.04220007,171.7,171.66,0.04470956]
[1740162294259,0.04220007,171.7,171.66,16.46530978]
[1740162294659,0.04220007,171.7,171.69,5.8237]
[1740162299256,1.7901,171.77,171.69,16.42060022]
[1740162299459,5.8211,171.77,171.73,5.8221]
[1740162299764,5.3522,171.82,171.72,16.42060022]
[1740162300061,1.02296243,171.81,171.72,16.42060022]
[1740162300456,5.8212,171.77,171.75,0.04237221]
[1740162301161,0.04066792,171.78,171.75,0.04237221]
[1740162301359,5.8213,171.76,171.75,0.04237221]
[1740162301857,5.8224,171.73,171.69,22.24430022]
[1740162302061,0.04066792,171.78,171.69,16.42060022]
[1740162302255,5.3522,171.82,171.69,16.42060022]
[1740162302256,1.02303789,171.81,171.69,16.42060022]
[1740162302957,0.03985006,171.77,171.73,0.04194776]
[1740162303154,0.03985006,171.77,171.76,5.8213]
[1740162304061,4.51052435,171.87,171.79,5.8201]
[1740162304261,5.8188,171.84,171.79,16.42060022]
[1740162305068,5.8188,171.84,171.79,22.24080022]
[1740162305264,0.03742649,171.83,171.8,0.04100981]
[1740162305570,5.8196,171.81,171.8,0.04100981]
[1740162306262,5.8196,171.81,171.72,16.42060022]
[1740162306467,16.42060022,171.85,171.72,16.42060022]
[1740162306659,1.02284109,171.84,171.72,16.42060022]
[1740162307058,1.02284109,171.83,171.77,5.8208]
[1740162307270,3.4877,171.87,171.77,16.42060022]
[1740162307467,0.03734801,171.82,171.78,0.04295946]
[1740162308665,5.85674801,171.82,171.78,5.86345946]
[1740162308869,0.03734801,171.82,171.78,0.04295946]
[1740162309265,5.8203,171.79,171.78,0.04295946]
[1740162309463,0.03734801,171.82,171.78,0.04295946]
[1740162310365,0.03734801,171.82,171.7,16.42060022]
[1740162310567,1.0227057,171.84,171.7,16.42060022]
[1740162310866,16.42060022,171.82,171.67,16.42060022]
[1740162311171,5.8237,171.7,171.6,3.597]
[1740162311576,3.5518,171.75,171.65,0.03920138]
[1740162311768,1.7221,171.75,171.68,16.42060022]
[1740162311970,10.10910306,171.8,171.74,16.42060022]
[1740162312269,10.10910306,171.8,171.76,5.8213]
[1740162312467,0.04385416,171.79,171.76,5.8213]
[1740162313074,0.04385416,171.79,171.75,0.04012691]
[1740162313471,0.04385416,171.79,171.77,5.8207]
[1740162314274,0.04385416,171.79,171.78,5.8207]
[1740162316067,0.04385416,171.79,171.77,16.42060022]
[1740162316265,0.04385416,171.79,171.75,0.04012691]
[1740162316470,0.04385416,171.79,171.77,16.42060022]
[1740162316776,0.04385416,171.79,171.78,5.8207]
[1740162318279,5.8182,171.86,171.82,5.819]
[1740162318475,35.80187058,171.93,171.81,16.42060022]
[1740162318671,1.02237297,171.92,171.84,5.8186]
[1740162318975,1.02237297,171.92,171.81,16.42060022]
[1740162319173,5.8168,171.9,171.85,5.818]
[1740162319371,0.04097125,171.88,171.85,5.85527753]
[1740162319568,0.04097125,171.88,171.85,0.03727753]
[1740162319770,5.85837125,171.88,171.85,5.85557753]
[1740162319975,0.04097125,171.88,171.85,5.85557753]
[1740162320276,0.04097125,171.88,171.85,0.03727753]
[1740162320474,0.04097125,171.88,171.85,5.85547753]
[1740162321378,0.04097125,171.88,171.87,5.8176]
[1740162322279,0.04097125,171.88,171.85,0.03727753]
[1740162324879,0.04097125,171.88,171.86,5.8177]
[1740162325976,0.04097125,171.88,171.85,0.03727753]
[1740162327578,0.04097125,171.88,171.87,5.8176]
[1740162328487,7.125e-05,171.88,171.87,22.23820022]
[1740162333292,1.02195913,171.97,171.87,16.42060022]
[1740162334593,0.04232364,171.94,171.9,0.03975515]
[1740162335787,5.85762364,171.94,171.9,0.03975515]
[1740162336691,5.8156,171.93,171.9,0.03975515]
[1740162336892,0.04232364,171.94,171.9,0.03975515]
[1740162338395,5.85772364,171.94,171.9,0.03975515]
[1740162339593,5.85772364,171.94,171.91,5.816]
[1740162339895,0.04232364,171.94,171.9,0.03975515]
[1740162340290,0.04232364,171.94,171.91,5.816]
[1740162340793,5.85782364,171.94,171.9,5.85625515]
[1740162341187,0.04232364,171.94,171.9,0.03975515]
[1740162341393,0.04232364,171.94,171.91,5.8162]
[1740162342390,5.85762364,171.94,171.91,5.8162]
[1740162342596,0.04232364,171.94,171.9,0.03975515]
[1740162343091,5.8161,171.92,171.9,0.03975515]
[1740162343395,0.04232364,171.94,171.9,0.03975515]
[1740162343992,5.8162,171.92,171.9,0.03975515]
[1740162344297,0.04232364,171.94,171.9,0.03975515]
[1740162346597,0.04232364,171.94,171.91,5.8162]
[1740162347300,0.04232364,171.94,171.92,5.8159]
[1740162347599,0.04232364,171.94,171.9,16.46035537]
[1740162348098,0.04232364,171.94,171.93,5.8156]
[1740162348400,2.364e-05,171.94,171.93,22.23620022]
[1740162349594,1.8306,172.02,171.93,16.42060022]
[1740162349799,1.8306,172.02,171.96,16.42060022]
[1740162350799,5.8129,172.01,171.96,16.42060022]
[1740162351003,0.03973415,172.01,171.97,0.03704318]
[1740162351303,5.85283415,172.01,171.97,0.03704318]
[1740162352002,0.03973415,172.01,171.97,0.03704318]